fUSD/lending_fUSD_20260421
["ID","MTS","AMOUNT","RATE_DAILY","PERIOD"]
[420942093,1776767432073,-1336.51,0.0001,2]
[420942095,1776767432088,-242.98,0.0001,2]
[420942097,1776767432098,-269.9341666,0.0001,2]
[420942099,1776767432109,-250.20494288,0.00010147,2]
[420942101,1776767432119,-154.0,0.00010189,3]
[420942103,1776767432129,-160.83,0.00010264,2]
[420942105,1776767432139,-299.99,0.00010264,2]
[420942107,1776767432149,-13175.34,0.00010264,2]
[420942110,1776767432159,-3353.99,0.00010264,2]
[420942112,1776767432169,-150.99,0.00010264,2]
[420942114,1776767432178,-163.37,0.00010292,2]
[420942116,1776767432188,-2351.0,0.00010387,2]
[420942118,1776767432198,-2602.70809575,0.00010475,2]
[420942120,1776767432211,-2168.09710004,0.00010475,2]
[420942122,1776767432224,-15170.46702422,0.00010475,2]
[420942175,1776767437795,-580.23789574,0.00010475,2]
[420942176,1776767437964,-21871.62988425,0.00010475,2]
[420942177,1776767437973,-2074.07,0.00010475,2]
[420942178,1776767437982,-999.99,0.00010475,2]
[420942179,1776767437992,-578.20924308,0.00010475,2]
[420942180,1776767438001,-721.12765535,0.00010475,2]
[420942181,1776767438010,-181.08010149,0.00010475,2]
[420942182,1776767438020,-48262.1974126,0.00010555,2]
[420942183,1776767438030,-347.8108959,0.00010657,2]
[420942184,1776767438039,-851.5125234,0.00010757,2]
[420942185,1776767438050,-7948.4874766,0.00010757,2]
[420942186,1776767438059,-1852.42,0.00010791,2]
[420942187,1776767438068,-272.36368211,0.00010801,2]
[420942188,1776767438078,-500.0,0.00010801,2]
[420942189,1776767438087,-151.0,0.00010866,2]
[420942190,1776767438095,-153.0,0.00010871,5]
[420942191,1776767438104,-150.0,0.00010871,5]
[420942192,1776767438113,-2000.0,0.00010878,2]
[420942193,1776767438122,-3948.86064304,0.000109,2]
[420942194,1776767438131,-1265.0,0.00010959,2]
[420942195,1776767438140,-1219.0,0.00010959,2]
[420942196,1776767438149,-443.379,0.00010959,2]
[420942197,1776767438158,-6031.0,0.00010959,2]
[420942198,1776767438166,-548.32594934,0.00010959,2]
[420942199,1776767438175,-3240.0,0.00010959,2]
[420942200,1776767438185,-283.96107,0.00010959,2]
[420942201,1776767438194,-2427.3712019,0.00010991,2]
[420942202,1776767438203,-968.8881157,0.00011015,2]
[420942203,1776767438213,-6047.85982878,0.00011099,2]
[420942204,1776767438221,-6047.8598287,0.00011099,2]
[420942205,1776767438231,-223.87699,0.00011099,2]
[420942206,1776767438240,-223.87699,0.00011099,2]
[420942207,1776767438249,-223.87699,0.00011099,2]
[420942209,1776767438259,-223.87699,0.00011099,2]
[420942211,1776767438268,-151.0,0.00011099,2]
[420942213,1776767438277,-154.0,0.00011173,3]
[420942214,1776767438286,-541.619725,0.00011267,2]
[420942216,1776767438295,-216.1881604,0.00011296,2]
[420942218,1776767438304,-1536.3916881,0.00011376,2]
[420942221,1776767438317,-1826.1386616,0.00011376,2]
[420942223,1776767438328,-586.33029328,0.00011376,2]
[420942225,1776767438338,-2013.0,0.00011425,2]
[420942227,1776767438347,-870.37241012,0.00011526,2]
[420942230,1776767438367,-129.62758988,0.00011526,2]
[420942232,1776767438376,-151.0,0.00011623,2]
[420942234,1776767438386,-151.0,0.00011626,2]
[420942236,1776767438395,-151.0,0.00011626,2]
[420942238,1776767438404,-174.0,0.00011626,3]
[420942240,1776767438414,-158.0,0.00011665,3]
[420942242,1776767438424,-661.65,0.00011668,2]
[420942244,1776767438434,-115.66316947,0.00011671,2]
[420942246,1776767438446,-57.18683053,0.00011671,2]
[420942248,1776767438456,-151.0,0.00011688,2]
[420942250,1776767438466,-437.0,0.0001173,2]
[420942252,1776767438476,-437.0,0.00011735,2]
[420942254,1776767438487,-150.0,0.00011756,2]
[420942257,1776767438495,-150.0,0.00011757,2]
[420942260,1776767438502,-1563.91104242,0.0001176,2]
[420942262,1776767438511,-437.0,0.00011761,2]
[420942263,1776767438518,-437.0,0.00011799,2]
[420942265,1776767438526,-356.5070003,0.00011805,2]
[420942267,1776767438533,-437.0,0.00011824,2]
[420942269,1776767438541,-437.0,0.00011824,2]
[420942270,1776767438547,-437.0,0.00011828,2]
[420942272,1776767438556,-437.0,0.00011841,2]
[420942274,1776767438566,-437.0,0.00011853,2]
[420942277,1776767438576,-437.0,0.00011858,2]
[420942278,1776767438585,-333.33334,0.0001188,2]
[420942281,1776767438595,-333.33333,0.0001188,2]
[420942283,1776767438605,-333.33333,0.0001188,2]
[420942285,1776767438614,-333.33333,0.0001188,2]
[420942287,1776767438624,-5868.1776754,0.00011892,2]
[420942290,1776767438644,-4900.5741624,0.00011892,2]
[420942292,1776767438654,-437.0,0.00011895,2]
[420942294,1776767438664,-952.16246265,0.000119,2]
[420942305,1776767440277,-320.85045966,0.000119,2]
[420942306,1776767440338,-220.04857769,0.000119,2]
[420942307,1776767440348,-273.6926324,0.000119,2]
[420942308,1776767440359,-5261.31395207,0.000119,2]
[420942309,1776767440368,-6420.75565438,0.000119,2]
[420942310,1776767440378,-200.0,0.00011904,2]
[420942311,1776767440387,-437.0,0.00011908,2]
[420942312,1776767440396,-250.0,0.00011929,2]
[420942313,1776767440406,-250.0,0.00011929,2]
[420942314,1776767440415,-522.0,0.00011932,2]
[420942315,1776767440425,-437.0,0.00011933,2]
[420942316,1776767440434,-437.0,0.00011934,2]
[420942317,1776767440444,-437.0,0.00011945,2]
[420942318,1776767440453,-151.0,0.00011945,2]
[420942319,1776767440463,-151.0,0.00011945,2]
[420942320,1776767440472,-151.0,0.00011945,2]
[420942321,1776767440482,-322.933808,0.00011973,2]
[420942322,1776767440491,-322.933808,0.00011973,2]
[420942323,1776767440500,-322.933808,0.00011973,2]
[420942324,1776767440509,-322.933808,0.00011973,2]
[420942325,1776767440519,-164.00794097,0.00011973,2]
[420942326,1776767440528,-577.20212446,0.00011973,2]
[420942327,1776767440537,-160.83,0.00011975,2]
[420942328,1776767440546,-437.0,0.00011976,2]
[420942329,1776767440556,-437.0,0.0001198,2]
[420942330,1776767440566,-151.0,0.00011997,2]
[420942331,1776767440575,-300.0,0.00011999,2]
[420942332,1776767440584,-154.0,0.00012,5]
[420942333,1776767440594,-206797.17932822,0.00012,2]
[420942334,1776767440606,-71035.33636396,0.00012,2]
[420942341,1776767443038,-203.27910775,8.585e-05,2]
[420942342,1776767443049,-416.0,0.00011079,2]
[420942343,1776767443059,-167.72089225,0.0001176,2]
[420942349,1776767447073,-152.0,0.00010557,7]
[420942350,1776767447083,-986.70039753,0.0001176,2]
[420942351,1776767447092,-4017.29960247,0.00012,2]
[420942352,1776767447108,-5532.0,0.00012,2]
[420942353,1776767447129,-1527.99,0.00012,2]
[420942355,1776767668205,1151.51,0.000165,30]
[420942356,1776767684165,-176.24,8.542e-05,2]
[420942357,1776767684186,-501.63006459,8.563e-05,2]
[420942358,1776767684206,-157.64690246,8.563e-05,2]
[420942359,1776767684227,-500.0,8.563e-05,2]
[420942360,1776767684247,-500.0,8.563e-05,2]
[420942361,1776767684268,-500.34107115,8.563e-05,2]
[420942362,1776767684288,-500.0,8.563e-05,2]
[420942363,1776767684309,-171.31417741,8.563e-05,2]
[420942364,1776767684331,-500.0,8.563e-05,2]
[420942365,1776767684351,-501.2224428,8.563e-05,2]
[420942366,1776767684372,-500.0,8.563e-05,2]
[420942367,1776767684394,-634.57042281,8.563e-05,2]
[420942368,1776767684414,-500.0,8.563e-05,2]
[420942369,1776767684435,-500.0,8.584e-05,2]
[420942370,1776767684456,-500.0,8.584e-05,2]
[420942371,1776767684478,-333.06870524,8.584e-05,2]
[420942372,1776767684506,-500.0,8.584e-05,2]
[420942373,1776767684535,-500.0,8.584e-05,2]
[420942374,1776767684563,-500.0,8.584e-05,2]
[420942375,1776767684591,-500.0,8.584e-05,2]
[420942376,1776767684619,-500.0,8.584e-05,2]
[420942377,1776767684647,-500.0,8.584e-05,2]
[420942378,1776767684675,-500.0,8.584e-05,2]
[420942379,1776767684702,-500.0,8.584e-05,2]
[420942380,1776767684729,-500.0,8.584e-05,2]
[420942381,1776767684756,-500.0,8.584e-05,2]
[420942382,1776767684784,-500.0,8.584e-05,2]
[420942383,1776767684811,-500.0,8.584e-05,2]
[420942384,1776767684838,-500.0,8.584e-05,2]
[420942385,1776767684865,-500.0,8.584e-05,2]
[420942386,1776767684893,-500.0,8.584e-05,2]
[420942387,1776767684921,-500.0,8.584e-05,2]
[420942388,1776767684948,-307.677903,8.584e-05,2]
[420942389,1776767684975,-500.0,8.584e-05,2]
[420942390,1776767685003,-500.0,8.584e-05,2]
[420942391,1776767685031,-500.0,8.584e-05,2]
[420942392,1776767685059,-500.0,8.584e-05,2]
[420942393,1776767685080,-542.53299788,8.584e-05,2]
[420942394,1776767685103,-275.7469906,8.584e-05,2]
[420942395,1776767685125,-500.0,8.584e-05,2]
[420942396,1776767685147,-500.0,8.584e-05,2]
[420942397,1776767685169,-500.0,8.584e-05,2]
[420942398,1776767685191,-398.00832206,8.584e-05,2]
[420942399,1776767738781,-300.0,8.584e-05,2]
[420942400,1776767738809,-158.0,8.584e-05,3]
[420942401,1776767765925,158.0,8.584e-05,3]
[420942402,1776767771051,157.0,8.584e-05,3]
[420942403,1776767784720,500.0,8.584e-05,2]
[420942404,1776767784762,645.29754478,8.584e-05,2]
[420942405,1776767790895,212.16404511,8.584e-05,2]
[420942406,1776767803675,633.02289342,8.584e-05,2]
[420942407,1776767812375,171.0,8.584e-05,3]
[420942408,1776767836291,500.0,8.584e-05,2]
[420942409,1776767836332,201.75677571,8.584e-05,2]
[420942410,1776767864879,257.10733039,8.584e-05,2]
[420942411,1776767886121,158.0,8.584e-05,3]
[420942412,1776767891889,186.57983023,8.584e-05,2]
[420942413,1776767946093,500.0,8.584e-05,2]
[420942414,1776767946157,280.73303631,8.584e-05,2]
[420942415,1776767946215,500.0,8.584e-05,2]
[420942416,1776767946262,500.0,8.584e-05,2]
[420942417,1776767970286,918.0,0.00016226,30]
[420942418,1776767970500,918.0,0.00016226,30]
[420942419,1776767970651,918.0,0.00016226,30]
[420942420,1776767970807,918.0,0.00016226,30]
[420942421,1776767970970,918.0,0.00016226,30]
[420942422,1776767971207,918.0,0.00016226,30]
[420942423,1776767971362,918.0,0.00016226,30]
[420942424,1776767971512,918.0,0.00016226,30]
[420942425,1776767971681,918.0,0.00016226,30]
[420942426,1776767971854,918.0,0.00016226,30]
[420942427,1776767972007,918.0,0.00016226,30]
[420942428,1776767972155,918.0,0.00016226,30]
[420942429,1776767972328,918.0,0.00016226,30]
[420942430,1776767972481,918.0,0.00016226,30]
[420942431,1776767972631,918.0,0.00016226,30]
[420942432,1776767972782,918.0,0.00016226,30]
[420942433,1776767973025,918.0,0.00016226,30]
[420942434,1776767973490,918.0,0.00016226,30]
[420942435,1776767974226,918.0,0.00016226,30]
[420942436,1776767975287,918.0,0.00016226,30]
[420942437,1776767976650,918.0,0.00016226,30]
[420942438,1776767978303,918.0,0.00016226,30]
[420942440,1776767980996,918.0,0.00016226,30]
[420942441,1776767982528,925.48739189,0.00016226,30]
[420942442,1776768001161,45.95100786,8.584e-05,2]
[420942443,1776768001186,434.04899214,8.584e-05,2]
[420942444,1776768007094,156.0,8.584e-05,3]
[420942445,1776768007380,132.84650946,8.584e-05,3]
[420942455,1776768568436,1058.0933407,8e-05,2]
[420942460,1776768632130,-161.0,8.584e-05,3]
[420942461,1776768632140,-157.0,8.584e-05,3]
[420942462,1776768632150,-509.19197519,8.585e-05,2]
[420942467,1776768632161,-202.19512481,8.585e-05,2]
[420942468,1776768632170,-226.31,8.6e-05,2]
[420942471,1776768632180,-300.0,9.442e-05,2]
[420942473,1776768632189,-924.14287519,9.442e-05,2]
[420942484,1776768632423,-717.79063966,9.442e-05,2]
[420942485,1776768632442,-712.750005,9.442e-05,2]
[420942486,1776768632454,-2645.31648015,9.442e-05,2]
[420942487,1776768632463,-250.0,9.442e-05,2]
[420942488,1776768632472,-250.0,9.442e-05,2]
[420942489,1776768632482,-161.0,9.804e-05,3]
[420942490,1776768632491,-40247.0696381,9.843e-05,2]
[420942491,1776768632500,-4610.0229803,9.843e-05,2]
[420942492,1776768632510,-2402.8333223,9.843e-05,2]
[420942493,1776768632519,-14081.51512913,9.952e-05,2]
[420942494,1776768632529,-1268.18,0.0001,2]
[420942495,1776768632538,-317.04,0.0001,2]
[420942496,1776768632548,-609.26,0.0001,2]
[420942497,1776768632558,-416.25,0.0001,2]
[420942498,1776768632567,-584.66,0.0001026,2]
[420942499,1776768632576,-818.6,0.0001042,2]
[420942500,1776768632586,-200.0,0.0001064,2]
[420942501,1776768632600,-500.0,0.00010644,2]
[420942502,1776768632611,-2074.07,0.00010644,2]
[420942503,1776768632620,-150.99,0.00010644,2]
[420942504,1776768632630,-37042.09,0.00010644,2]
[420942505,1776768632639,-1527.76,0.00010644,2]
[420942506,1776768632648,-9999.99,0.00010644,2]
[420942507,1776768632657,-999.99,0.00010644,2]
[420942508,1776768632667,-500.0,0.00010673,2]
[420942509,1776768632676,-500.0,0.00010673,2]
[420942510,1776768632685,-500.0,0.00010673,2]
[420942511,1776768632695,-500.0,0.00010673,2]
[420942512,1776768632704,-500.0,0.00010673,2]
[420942513,1776768632713,-500.0,0.00010673,2]
[420942514,1776768632723,-5530.0,0.000107,3]
[420942515,1776768632732,-1615.21,0.00010739,2]
[420942516,1776768632742,-265.19023157,0.00010758,2]
[420942517,1776768632751,-272.36368211,0.00010816,2]
[420942518,1776768632760,-548.32594934,0.00010959,2]
[420942519,1776768632770,-5530.0,0.00011,5]
[420942520,1776768632779,-578.20924308,0.00011004,2]
[420942521,1776768632789,-721.12765535,0.00011004,2]
[420942522,1776768632799,-181.08010149,0.00011004,2]
[420942523,1776768632808,-1000.0,0.00011004,2]
[420942524,1776768632819,-1000.0,0.00011004,2]
[420942525,1776768632828,-1000.0,0.00011004,2]
[420942526,1776768632838,-923.59143673,0.00011004,2]
[420942527,1776768632848,-161.0,0.00011023,3]
[420942528,1776768632857,-151.0,0.00011087,2]
[420942529,1776768632867,-1348.0,0.00011089,2]
[420942530,1776768632876,-1048.0,0.00011089,2]
[420942531,1776768632886,-3530.0,0.00011089,2]
[420942532,1776768632895,-1265.0,0.00011089,2]
[420942533,1776768632904,-250.0,0.00011089,2]
[420942534,1776768632914,-3431.208,0.00011089,2]
[420942535,1776768632923,-416.0,0.00011089,2]
[420942536,1776768632933,-8980.3350938,0.0001109,2]
[420942537,1776768632943,-1028.6351658,0.0001109,2]
[420942538,1776768632952,-500.0,0.00011099,2]
[420942539,1776768632961,-6110.7613236,0.00011099,2]
[420942540,1776768632971,-2003.7836076,0.00011368,2]
[420942541,1776768632980,-229.5195292,0.00011368,2]
[420942542,1776768632989,-500.0,0.00011373,2]
[420942543,1776768632999,-452.94,0.00011424,2]
[420942544,1776768633009,-1104.94,0.00011507,2]
[420942545,1776768633019,-584.66,0.00011543,2]
[420942546,1776768633028,-150.0,0.00011588,2]
[420942547,1776768633038,-150.0,0.00011588,2]
[420942548,1776768633048,-150.0,0.00011588,2]
[420942549,1776768633057,-9792.4084442,0.000116,2]
[420942550,1776768633066,-4971.656,0.00011625,2]
[420942551,1776768633076,-365.567,0.00011625,2]
[420942552,1776768633085,-502.74187909,0.00011647,2]
[420942553,1776768633096,-33916.89541018,0.00011671,2]
[420942554,1776768633105,-638.27,0.00011696,2]
[420942555,1776768633115,-1179.10394583,0.0001176,2]
[420942556,1776768633125,-5000.0,0.000118,2]
[420942557,1776768633134,-347.8108959,0.000118,2]
[420942558,1776768633143,-335.03281416,0.000118,2]
[420942559,1776768633153,-444.0,0.00011818,2]
[420942560,1776768633162,-888.88888,0.0001188,2]
[420942561,1776768633172,-888.88889,0.0001188,2]
[420942562,1776768633181,-888.88889,0.0001189,2]
[420942563,1776768633191,-156.0,0.000119,5]
[420942564,1776768633200,-1000.0,0.000119,2]
[420942565,1776768633209,-361.35,0.000119,2]
[420942566,1776768633219,-6047.85982878,0.000119,2]
[420942567,1776768633228,-200.0,0.00011904,2]
[420942568,1776768633238,-888.88889,0.0001191,2]
[420942569,1776768633247,-250.0,0.00011945,2]
[420942570,1776768633257,-200.0,0.00011945,2]
[420942571,1776768633267,-300.28,0.00011945,2]
[420942572,1776768633276,-1185.0762762,0.00011985,2]
[420942573,1776768633285,-200.0,0.00011985,2]
[420942574,1776768633295,-150.0,0.00012,5]
[420942575,1776768633305,-178857.32836006,0.00012,2]
[420942576,1776768633314,-150.0,0.00012,2]
[420942577,1776768633324,-10426.5244196,0.00012,2]
[420942578,1776768633333,-312851.97645058,0.00012,2]
[420942579,1776768633346,-675.352,0.00012,2]
[420942580,1776768633357,-851.28410069,0.00012,2]
[420942581,1776768633368,-1167.29979998,0.00012,2]
[420942582,1776768633379,-487.38503545,0.00012,2]
[420942592,1776768638162,-786.06929722,0.0001176,2]
[420942593,1776768638175,-75101.55841885,0.00012,2]
[420942594,1776768638191,-48993.48432967,0.00012,2]
[420942595,1776768638207,-1826.1386616,0.00012,2]
[420942596,1776768638323,-395.11007715,0.00012,2]
[420942597,1776768638419,-854.21876574,0.00012,2]
[420942613,1776768640276,-89657.83721502,0.00012,2]
[420942614,1776768640289,-150.0,0.00012,2]
[420942615,1776768640303,-63192.16278498,0.00012,2]
[420942616,1776768640359,-1.42975161,0.00012,2]
[420942617,1776768640509,-5312.69146712,0.00012,2]
[420942618,1776768640523,-150.0,0.00012,2]
[420942619,1776768640539,-262.05511788,0.00012,2]
[420942620,1776768640561,-1515.4,0.00012,2]
[420942653,1776768645407,-443.379,0.00011089,2]
[420942654,1776768645417,-393.03464861,0.0001176,2]
[420942655,1776768645426,-3754.78635139,0.00012,2]
[420942656,1776768645469,-2635.03416755,0.00012,2]
[420942657,1776768645479,-1000.0,0.00012,2]
[420942658,1776768645488,-1000.0,0.00012,2]
[420942659,1776768645497,-1000.0,0.00012,2]
[420942660,1776768645506,-1000.0,0.00012,2]
[420942661,1776768645515,-1000.0,0.00012,2]
[420942663,1776768645524,-1000.0,0.00012,2]
[420942665,1776768645533,-1000.0,0.00012,2]
[420942666,1776768645542,-1000.0,0.00012,2]
[420942667,1776768645552,-1000.0,0.00012,2]
[420942668,1776768645561,-1000.0,0.00012,2]
[420942669,1776768645570,-1000.0,0.00012,2]
[420942670,1776768645579,-1000.0,0.00012,2]
[420942671,1776768645588,-1000.0,0.00012,2]
[420942672,1776768645597,-1000.0,0.00012,2]
[420942673,1776768645606,-1000.0,0.00012,2]
[420942674,1776768645615,-1000.0,0.00012,2]
[420942675,1776768645624,-1000.0,0.00012,2]
[420942676,1776768645633,-1000.0,0.00012,2]
[420942677,1776768645642,-1000.0,0.00012,2]
[420942678,1776768645651,-1000.0,0.00012,2]
[420942679,1776768645661,-1000.0,0.00012,2]
[420942680,1776768645670,-1004.8124166,0.00012,2]
[420942681,1776768645679,-63594.0662159,0.00012,2]
[420942682,1776768646145,-5532.0,0.00012,2]
[420942683,1776768646246,-5122.10611139,0.00012,2]
[420942684,1776768646258,-23535.54823492,0.00012,2]
[420942685,1776768646268,-1000.0,0.00012,2]
[420942686,1776768646278,-1000.0,0.00012,2]
[420942687,1776768646287,-1000.0,0.00012,2]
[420942688,1776768646297,-283.96107,0.00012,2]
[420942689,1776768646306,-264.14,0.00012,2]
[420942690,1776768646316,-151.0,0.00012,2]
[420942692,1776768646326,-151.0,0.00012,2]
[420942694,1776768646335,-151.0,0.00012,2]
[420942696,1776768646345,-151.0,0.00012,2]
[420942698,1776768646354,-166.12659,0.00012,2]
[420942700,1776768646363,-888.88889,0.00012,2]
[420942702,1776768646373,-888.88889,0.00012,2]
[420942704,1776768646382,-1013.63,0.00012034,3]
[420942705,1776768646392,-179.95611107,0.00012166,2]
[420942707,1776768646401,-6484.75303657,0.00012176,2]
[420942726,1776769425432,150.0,0.00016135,30]
[420942727,1776769503826,150.0,0.00015284,30]
[420942728,1776769504188,150.0,0.00016217,30]
[420942733,1776769663395,150.0,0.00015279,30]
[420942734,1776769663757,150.0,0.00016212,30]
[420942744,1776769831913,-187.54,8.271e-05,2]
[420942747,1776769831922,-300.0,8.699e-05,2]
[420942750,1776769831932,-227.15351426,8.7e-05,2]
[420942761,1776769832071,-8599.21342773,8.7e-05,2]
[420942762,1776769832080,-268.92,8.7e-05,2]
[420942763,1776769832089,-150.0,8.852e-05,2]
[420942764,1776769832098,-150.00000001,8.852e-05,2]
[420942765,1776769832107,-151.70461561,8.852e-05,2]
[420942766,1776769832116,-150.00000001,8.852e-05,2]
[420942767,1776769832126,-150.0,8.852e-05,2]
[420942768,1776769832135,-250.0,9.099e-05,2]
[420942769,1776769832144,-333.96697462,9.642e-05,2]
[420942770,1776769832154,-157.81013456,9.642e-05,2]
[420942771,1776769832164,-323.66591151,9.642e-05,2]
[420942772,1776769832173,-500.0,9.642e-05,2]
[420942773,1776769832182,-500.0,9.642e-05,2]
[420942774,1776769832191,-615.27118592,9.642e-05,2]
[420942775,1776769832200,-500.0,9.642e-05,2]
[420942776,1776769832210,-640.01522876,9.642e-05,2]
[420942777,1776769832219,-500.0,9.642e-05,2]
[420942778,1776769832229,-1140.8648,9.643e-05,2]
[420942779,1776769832238,-426584.06157693,9.643e-05,2]
[420942781,1776769833757,-6483.32621611,9.643e-05,2]
[420942785,1776769838162,-500.0,9.642e-05,2]
[420942786,1776769838172,-3338.4564156,9.643e-05,2]
[420942787,1776769838475,-75887.62771607,9.643e-05,2]
[420942788,1776769838487,-48993.48432967,9.643e-05,2]
[420942789,1776769838498,-1826.1386616,9.643e-05,2]
[420943002,1776769840636,-19215.62132233,9.643e-05,2]
[420943009,1776769840690,-129592.58816169,9.643e-05,2]
[420943011,1776769840700,-176.24,9.695e-05,2]
[420943013,1776769840709,-24572.7539461,9.715e-05,2]
[420943015,1776769840718,-150.0,9.722e-05,2]
[420943017,1776769840727,-157.64690246,9.723e-05,2]
[420943019,1776769840736,-164.66456417,9.723e-05,2]
[420943021,1776769840745,-305.68024841,9.723e-05,2]
[420943023,1776769840754,-501.72292527,9.723e-05,2]
[420943025,1776769840763,-500.0,9.723e-05,2]
[420943027,1776769840773,-500.34107115,9.723e-05,2]
[420943029,1776769840782,-500.0,9.723e-05,2]
[420943030,1776769840795,-500.0,9.723e-05,2]
[420943031,1776769840804,-500.0,9.723e-05,2]
[420943032,1776769840814,-501.2224428,9.723e-05,2]
[420943033,1776769840823,-500.0,9.723e-05,2]
[420943034,1776769840833,-171.31417741,9.723e-05,2]
[420943035,1776769840842,-426.34552092,9.723e-05,2]
[420943036,1776769840852,-500.10249107,9.723e-05,2]
[420943037,1776769840862,-500.0,9.723e-05,2]
[420943038,1776769840870,-500.0,9.723e-05,2]
[420943039,1776769840879,-634.57042281,9.723e-05,2]
[420943040,1776769840889,-500.0,9.742e-05,2]
[420943041,1776769840898,-500.0,9.742e-05,2]
[420943042,1776769840908,-500.0,9.742e-05,2]
[420943043,1776769840917,-500.0,9.742e-05,2]
[420943044,1776769840927,-500.0,9.742e-05,2]
[420943045,1776769840937,-586.39405457,9.742e-05,2]
[420943046,1776769840946,-500.0,9.742e-05,2]
[420943047,1776769840956,-500.0,9.742e-05,2]
[420943048,1776769840965,-500.0,9.742e-05,2]
[420943049,1776769840974,-500.0,9.742e-05,2]
[420943050,1776769840984,-500.0,9.742e-05,2]
[420943051,1776769840993,-500.0,9.742e-05,2]
[420943052,1776769841003,-500.0,9.742e-05,2]
[420943053,1776769841012,-500.0,9.742e-05,2]
[420943054,1776769841021,-500.0,9.742e-05,2]
[420943055,1776769841031,-500.0,9.742e-05,2]
[420943056,1776769841040,-500.0,9.742e-05,2]
[420943058,1776769841049,-500.0,9.742e-05,2]
[420943059,1776769841059,-500.0,9.742e-05,2]
[420943060,1776769841068,-500.0,9.742e-05,2]
[420943061,1776769841078,-500.0,9.742e-05,2]
[420943062,1776769841087,-500.0,9.742e-05,2]
[420943063,1776769841096,-500.0,9.742e-05,2]
[420943064,1776769841106,-264.18344069,9.742e-05,2]
[420943065,1776769841115,-217.68449861,9.742e-05,2]
[420943066,1776769841125,-133780.83224945,9.743e-05,2]
[420943071,1776769843303,-3780.70681905,9.743e-05,2]
[420943072,1776769843317,-722.8955016,9.743e-05,2]
[420943073,1776769843373,-38902.49396655,9.743e-05,2]
[420943074,1776769843481,-417.0,9.743e-05,2]
[420943075,1776769843536,-962.0,9.743e-05,2]
[420943085,1776769846070,-5916.0,9.743e-05,2]
[420943086,1776769846175,-1624.88106254,9.743e-05,2]
[420943101,1776770525360,799.95592447,8.22e-05,2]
[420943114,1776771032189,-298.0,8.655e-05,2]
[420943115,1776771032199,-150.0,8.655e-05,2]
[420943116,1776771032208,-150.0,8.655e-05,2]
[420943117,1776771032218,-150.0,8.655e-05,2]
[420943118,1776771032227,-150.62053055,8.655e-05,2]
[420943119,1776771032237,-258.0,8.655e-05,2]
[420943120,1776771032246,-327.81,8.693e-05,2]
[420943121,1776771032255,-500.0,8.976e-05,2]
[420943122,1776771032263,-200.0,9.076e-05,2]
[420943123,1776771032272,-2157.31,9.221e-05,2]
[420943124,1776771032281,-500.0,9.493e-05,2]
[420943125,1776771032291,-150.0,9.512e-05,2]
[420943126,1776771032300,-500.0,9.513e-05,2]
[420943127,1776771032309,-500.0,9.513e-05,2]
[420943128,1776771032319,-500.0,9.513e-05,2]
[420943129,1776771032328,-500.0,9.513e-05,2]
[420943130,1776771032338,-500.0,9.513e-05,2]
[420943131,1776771032347,-500.0,9.513e-05,2]
[420943132,1776771032357,-500.0,9.513e-05,2]
[420943133,1776771032366,-500.0,9.513e-05,2]
[420943134,1776771032376,-500.0,9.513e-05,2]
[420943135,1776771032385,-500.0,9.513e-05,2]
[420943136,1776771032394,-500.0,9.513e-05,2]
[420943137,1776771032406,-500.0,9.513e-05,2]
[420943138,1776771032415,-500.0,9.513e-05,2]
[420943139,1776771032425,-500.0,9.513e-05,2]
[420943140,1776771032434,-500.0,9.513e-05,2]